[Event "Titled Tuesday Blitz January 10 Early 2023"]
[White "Barrientos, Sergio E"]
[Black "Goldin, Roman"]
[WhiteFideId "4401824"]
[BlackFideId "2803860"]
[WhiteElo "2479"]
[BlackElo "2322"]
[Result "1-0"]
[Round "07"]
[TimeControl "180+2"]
[Date "2023.01.10"]
[WhiteClock "0:00:50"]
[BlackClock "0:00:01"]

1. d4 {[%clk 0:02:56]}  Nf6 {[%clk 0:02:59]} 2. Nf3 {[%clk 0:02:55]}  b5 {[%clk 0:02:58]} 3. e4 {[%clk 0:02:53]}  Nxe4 {[%clk 0:02:57]} 4. Bxb5 {[%clk 0:02:53]}  Bb7 {[%clk 0:02:58]} 5. O-O {[%clk 0:02:53]}  e6 {[%clk 0:02:58]} 6. c4 {[%clk 0:02:51]}  Be7 {[%clk 0:02:53]} 7. Re1 {[%clk 0:02:49]}  O-O {[%clk 0:02:52]} 8. Nc3 {[%clk 0:02:45]}  Nxc3 {[%clk 0:02:47]} 9. bxc3 {[%clk 0:02:45]}  d6 {[%clk 0:02:43]} 10. Bf4 {[%clk 0:02:42]}  Nd7 {[%clk 0:02:42]} 11. Rb1 {[%clk 0:02:40]}  Rb8 {[%clk 0:02:40]} 12. Qd3 {[%clk 0:02:36]}  Nf6 {[%clk 0:02:37]} 13. h3 {[%clk 0:02:31]}  c6 {[%clk 0:02:17]} 14. Ba4 {[%clk 0:02:30]}  Qa5 {[%clk 0:02:18]} 15. Bc2 {[%clk 0:02:29]}  g6 {[%clk 0:02:01]} 16. Bg5 {[%clk 0:02:23]}  Ba6 {[%clk 0:01:56]} 17. Bb3 {[%clk 0:02:16]}  Rfe8 {[%clk 0:01:37]} 18. Qd2 {[%clk 0:02:15]}  c5 {[%clk 0:01:02]} 19. Qf4 {[%clk 0:02:11]}  Nh5 {[%clk 0:01:00]} 20. Qh4 {[%clk 0:02:11]}  Bxg5 {[%clk 0:00:52]} 21. Nxg5 {[%clk 0:02:11]}  Qxc3 {[%clk 0:00:47]} 22. Red1 {[%clk 0:01:33]}  cxd4 {[%clk 0:00:36]} 23. Ne4 {[%clk 0:01:33]}  Qa5 {[%clk 0:00:17]} 24. g4 {[%clk 0:01:33]}  d5 {[%clk 0:00:12]} 25. Nd6 {[%clk 0:01:14]}  Qd8 {[%clk 0:00:09]} 26. Qxd8 {[%clk 0:01:04]}  Rexd8 {[%clk 0:00:09]} 27. c5 {[%clk 0:01:03]}  Nf4 {[%clk 0:00:07]} 28. Ba4 {[%clk 0:00:56]}  Ne2+ {[%clk 0:00:07]} 29. Kh2 {[%clk 0:00:55]}  Nc3 {[%clk 0:00:07]} 30. Rxb8 {[%clk 0:00:54]}  Rxb8 {[%clk 0:00:07]} 31. Rxd4 {[%clk 0:00:55]}  Bc4 {[%clk 0:00:01]} 32. c6 {[%clk 0:00:50]} 1-0


[Site "https://www.chess.com"]

[Event "Titled Tuesday Blitz January 10 Early 2023"]
[White "Boder, Jan"]
[Black "Szpar, Milosz"]
[WhiteFideId "16243226"]
[BlackFideId "1184989"]
[WhiteElo "2294"]
[BlackElo "2447"]
[Result "0-1"]
[Round "07"]
[TimeControl "180+2"]
[Date "2023.01.10"]
[WhiteClock "0:00:06"]
[BlackClock "0:01:14"]

1. b3 {[%clk 0:02:55]}  d5 {[%clk 0:02:59]} 2. Bb2 {[%clk 0:02:56]}  Bg4 {[%clk 0:03:00]} 3. f3 {[%clk 0:02:55]}  Bh5 {[%clk 0:02:59]} 4. h4 {[%clk 0:02:55]}  h6 {[%clk 0:02:57]} 5. g4 {[%clk 0:02:53]}  Qd6 {[%clk 0:02:57]} 6. Nh3 {[%clk 0:02:39]}  Qg3+ {[%clk 0:02:56]} 7. Nf2 {[%clk 0:02:38]}  Bg6 {[%clk 0:02:56]} 8. h5 {[%clk 0:02:09]}  Bh7 {[%clk 0:02:57]} 9. Nc3 {[%clk 0:02:09]}  Nf6 {[%clk 0:02:56]} 10. Rh3 {[%clk 0:02:07]}  Qd6 {[%clk 0:02:56]} 11. e3 {[%clk 0:02:05]}  c5 {[%clk 0:02:51]} 12. Bd3 {[%clk 0:02:05]}  Bxd3 {[%clk 0:02:49]} 13. Nxd3 {[%clk 0:02:06]}  e6 {[%clk 0:02:45]} 14. Nb5 {[%clk 0:02:06]}  Qd7 {[%clk 0:02:45]} 15. a4 {[%clk 0:02:02]}  Nc6 {[%clk 0:02:44]} 16. Ne5 {[%clk 0:02:00]}  Nxe5 {[%clk 0:02:44]} 17. Bxe5 {[%clk 0:02:01]}  Rc8 {[%clk 0:02:27]} 18. Nxa7 {[%clk 0:01:59]}  Ra8 {[%clk 0:02:28]} 19. Nb5 {[%clk 0:01:59]}  Rc8 {[%clk 0:02:28]} 20. Bxf6 {[%clk 0:01:50]}  gxf6 {[%clk 0:02:28]} 21. Qe2 {[%clk 0:01:48]}  c4 {[%clk 0:02:28]} 22. Kf2 {[%clk 0:01:38]}  Rg8 {[%clk 0:02:25]} 23. Rhh1 {[%clk 0:01:38]}  Bc5 {[%clk 0:02:08]} 24. bxc4 {[%clk 0:01:37]}  dxc4 {[%clk 0:02:08]} 25. c3 {[%clk 0:01:28]}  f5 {[%clk 0:02:02]} 26. gxf5 {[%clk 0:01:22]}  exf5 {[%clk 0:02:00]} 27. Rag1 {[%clk 0:01:19]}  Kf8 {[%clk 0:01:47]} 28. Nd4 {[%clk 0:01:19]}  f4 {[%clk 0:01:44]} 29. Rxg8+ {[%clk 0:01:12]}  Kxg8 {[%clk 0:01:44]} 30. Rg1+ {[%clk 0:01:12]}  Kh8 {[%clk 0:01:44]} 31. Qxc4 {[%clk 0:01:11]}  Ba7 {[%clk 0:01:36]} 32. Qb5 {[%clk 0:01:05]}  fxe3+ {[%clk 0:01:32]} 33. dxe3 {[%clk 0:01:05]}  Qe7 {[%clk 0:01:30]} 34. f4 {[%clk 0:00:43]}  Rc5 {[%clk 0:01:27]} 35. Qe2 {[%clk 0:00:28]}  Rxc3 {[%clk 0:01:20]} 36. Rg3 {[%clk 0:00:29]}  Bxd4 {[%clk 0:01:19]} 37. Qg4 {[%clk 0:00:09]}  Bxe3+ {[%clk 0:01:13]} 38. Kg2 {[%clk 0:00:07]}  Qe4+ {[%clk 0:01:13]} 39. Kh3 {[%clk 0:00:06]}  Qh1# {[%clk 0:01:14]} 0-1


[Site "https://www.chess.com"]

[Event "Titled Tuesday Blitz January 10 Early 2023"]
[White "Flynn, Jacob"]
[Black "Spata, German"]
[WhiteFideId "2509393"]
[BlackFideId "113026"]
[WhiteElo "2102"]
[BlackElo "2383"]
[Result "1-0"]
[Round "07"]
[TimeControl "180+2"]
[Date "2023.01.10"]
[WhiteClock "0:02:01"]
[BlackClock "0:02:05"]

1. d4 {[%clk 0:03:00]}  e6 {[%clk 0:02:58]} 2. Nf3 {[%clk 0:03:00]}  Nf6 {[%clk 0:02:58]} 3. c4 {[%clk 0:02:58]}  c5 {[%clk 0:02:58]} 4. d5 {[%clk 0:02:58]}  exd5 {[%clk 0:02:58]} 5. cxd5 {[%clk 0:02:59]}  g6 {[%clk 0:02:58]} 6. Nc3 {[%clk 0:02:59]}  Bg7 {[%clk 0:02:59]} 7. Bf4 {[%clk 0:02:59]}  d6 {[%clk 0:02:56]} 8. Qa4+ {[%clk 0:02:52]}  Kf8 {[%clk 0:02:48]} 9. e3 {[%clk 0:02:45]}  h6 {[%clk 0:02:47]} 10. Nd2 {[%clk 0:02:31]}  Kg8 {[%clk 0:02:39]} 11. Qb3 {[%clk 0:02:23]}  Ne8 {[%clk 0:02:26]} 12. Be2 {[%clk 0:02:21]}  a6 {[%clk 0:02:26]} 13. a4 {[%clk 0:02:21]}  Nd7 {[%clk 0:02:23]} 14. O-O {[%clk 0:02:20]}  Qb6 {[%clk 0:02:21]} 15. Qxb6 {[%clk 0:02:17]}  Nxb6 {[%clk 0:02:21]} 16. a5 {[%clk 0:02:18]}  Nd7 {[%clk 0:02:20]} 17. Nc4 {[%clk 0:02:17]}  Bf8 {[%clk 0:02:13]} 18. Ne4 {[%clk 0:02:13]}  Ndf6 {[%clk 0:02:07]} 19. Nexd6 {[%clk 0:02:03]}  Nxd5 {[%clk 0:02:04]} 20. Nxe8 {[%clk 0:02:01]}  Nxf4 {[%clk 0:02:05]} 1-0


[Site "https://www.chess.com"]

[Event "Titled Tuesday Blitz January 10 Early 2023"]
[White "Czernek, Tymon"]
[Black "Dudzinski, Pawel"]
[WhiteFideId "1199510"]
[BlackFideId "1117890"]
[WhiteElo "2314"]
[BlackElo "2186"]
[Result "1-0"]
[Round "07"]
[TimeControl "180+2"]
[Date "2023.01.10"]
[WhiteClock "0:01:34"]
[BlackClock "0:00:02"]

1. e4 {[%clk 0:02:59]}  c6 {[%clk 0:02:57]} 2. d4 {[%clk 0:02:59]}  d5 {[%clk 0:02:56]} 3. f3 {[%clk 0:02:59]}  e6 {[%clk 0:02:55]} 4. Nc3 {[%clk 0:02:59]}  Bb4 {[%clk 0:02:51]} 5. Bd2 {[%clk 0:03:00]}  dxe4 {[%clk 0:02:45]} 6. Nxe4 {[%clk 0:02:46]}  Bxd2+ {[%clk 0:02:44]} 7. Qxd2 {[%clk 0:02:47]}  Nf6 {[%clk 0:02:44]} 8. O-O-O {[%clk 0:02:38]}  O-O {[%clk 0:02:30]} 9. g4 {[%clk 0:02:38]}  Nxe4 {[%clk 0:02:24]} 10. fxe4 {[%clk 0:02:39]}  e5 {[%clk 0:02:25]} 11. Be2 {[%clk 0:02:34]}  Qxd4 {[%clk 0:02:20]} 12. Qxd4 {[%clk 0:02:34]}  exd4 {[%clk 0:02:21]} 13. Rxd4 {[%clk 0:02:33]}  Be6 {[%clk 0:02:21]} 14. Nf3 {[%clk 0:02:32]}  Nd7 {[%clk 0:02:19]} 15. Ng5 {[%clk 0:02:29]}  Ne5 {[%clk 0:02:11]} 16. Nxe6 {[%clk 0:02:23]}  fxe6 {[%clk 0:02:12]} 17. Rd6 {[%clk 0:02:23]}  Rae8 {[%clk 0:01:43]} 18. Kd2 {[%clk 0:02:17]}  Rd8 {[%clk 0:01:40]} 19. Rxd8 {[%clk 0:02:17]}  Rxd8+ {[%clk 0:01:41]} 20. Ke3 {[%clk 0:02:18]}  Kf7 {[%clk 0:01:24]} 21. h4 {[%clk 0:02:18]}  h6 {[%clk 0:01:10]} 22. g5 {[%clk 0:02:16]}  Ke7 {[%clk 0:00:23]} 23. Rg1 {[%clk 0:02:12]}  hxg5 {[%clk 0:00:21]} 24. Rxg5 {[%clk 0:02:09]}  Kf6 {[%clk 0:00:20]} 25. Bh5 {[%clk 0:02:01]}  Rh8 {[%clk 0:00:16]} 26. Kf4 {[%clk 0:01:58]}  Nf7 {[%clk 0:00:10]} 27. Bxf7 {[%clk 0:01:48]}  Kxf7 {[%clk 0:00:08]} 28. h5 {[%clk 0:01:46]}  Rh6 {[%clk 0:00:04]} 29. Ke5 {[%clk 0:01:45]}  Rf6 {[%clk 0:00:04]} 30. Rg2 {[%clk 0:01:41]}  Rh6 {[%clk 0:00:04]} 31. Rh2 {[%clk 0:01:41]}  Ke7 {[%clk 0:00:04]} 32. Rg2 {[%clk 0:01:37]}  Rxh5+ {[%clk 0:00:03]} 33. Kf4 {[%clk 0:01:38]}  e5+ {[%clk 0:00:03]} 34. Kg4 {[%clk 0:01:34]}  Rh6 {[%clk 0:00:02]} 35. Kf5 {[%clk 0:01:34]}  Rf6+ {[%clk 0:00:02]} 36. Kxe5 {[%clk 0:01:34]}  Re6+ {[%clk 0:00:02]} 37. Kd4 {[%clk 0:01:34]} 1-0


[Site "https://www.chess.com"]

[Event "Titled Tuesday Blitz January 10 Early 2023"]
[White "Aaditya Dhingra"]
[Black "Salman, Pavel"]
[WhiteFideId "25678191"]
[BlackFideId "24153753"]
[WhiteElo "2027"]
[BlackElo "2287"]
[Result "1-0"]
[Round "07"]
[TimeControl "180+2"]
[Date "2023.01.10"]
[WhiteClock "0:01:02"]
[BlackClock "0:00:30"]

1. b3 {[%clk 0:03:00]}  Nf6 {[%clk 0:02:58]} 2. Bb2 {[%clk 0:03:00]}  c5 {[%clk 0:02:58]} 3. g3 {[%clk 0:02:59]}  Nc6 {[%clk 0:02:58]} 4. Bg2 {[%clk 0:02:57]}  b6 {[%clk 0:02:57]} 5. Nf3 {[%clk 0:02:56]}  Bb7 {[%clk 0:02:57]} 6. O-O {[%clk 0:02:54]}  e6 {[%clk 0:02:58]} 7. d3 {[%clk 0:02:53]}  Be7 {[%clk 0:02:58]} 8. e4 {[%clk 0:02:52]}  d6 {[%clk 0:02:58]} 9. Nbd2 {[%clk 0:02:51]}  O-O {[%clk 0:02:58]} 10. Nc4 {[%clk 0:02:48]}  b5 {[%clk 0:02:55]} 11. Ne3 {[%clk 0:02:48]}  Qc7 {[%clk 0:02:54]} 12. h4 {[%clk 0:02:46]}  Rfe8 {[%clk 0:02:53]} 13. Nh2 {[%clk 0:02:45]}  Rad8 {[%clk 0:02:51]} 14. h5 {[%clk 0:02:44]}  h6 {[%clk 0:02:50]} 15. Nhg4 {[%clk 0:02:43]}  Ne5 {[%clk 0:02:41]} 16. f4 {[%clk 0:02:40]}  Nexg4 {[%clk 0:02:35]} 17. Nxg4 {[%clk 0:02:39]}  Nxg4 {[%clk 0:02:29]} 18. Qxg4 {[%clk 0:02:39]}  e5 {[%clk 0:02:30]} 19. Rf2 {[%clk 0:02:23]}  c4 {[%clk 0:02:24]} 20. Raf1 {[%clk 0:02:21]}  f6 {[%clk 0:02:19]} 21. Bc1 {[%clk 0:02:16]}  Bc8 {[%clk 0:01:58]} 22. Qg6 {[%clk 0:02:13]}  exf4 {[%clk 0:01:46]} 23. Bxf4 {[%clk 0:02:05]}  Bf8 {[%clk 0:01:41]} 24. Bxh6 {[%clk 0:01:58]}  Kh8 {[%clk 0:01:40]} 25. Be3 {[%clk 0:01:52]}  Re5 {[%clk 0:01:34]} 26. h6 {[%clk 0:01:50]}  Be6 {[%clk 0:01:15]} 27. Bd4 {[%clk 0:01:37]}  Rg5 {[%clk 0:01:12]} 28. Qxg5 {[%clk 0:01:20]}  fxg5 {[%clk 0:01:03]} 29. Rxf8+ {[%clk 0:01:20]}  Kh7 {[%clk 0:00:47]} 30. hxg7 {[%clk 0:01:18]}  cxd3 {[%clk 0:00:32]} 31. Rh8+ {[%clk 0:01:15]}  Kg6 {[%clk 0:00:31]} 32. Rf6+ {[%clk 0:01:09]}  Kxg7 {[%clk 0:00:31]} 33. Rxe6+ {[%clk 0:01:03]}  Kf7 {[%clk 0:00:30]} 34. Rf6+ {[%clk 0:01:03]}  Ke7 {[%clk 0:00:30]} 35. Rh7+ {[%clk 0:01:02]} 1-0


[Site "https://www.chess.com"]

[Event "Titled Tuesday Blitz January 10 Early 2023"]
[White "Gonzalez, Francisco Silva"]
[Black "Le Ruyet, Leopold"]
[WhiteFideId "1512285"]
[BlackFideId "645923"]
[WhiteElo "2021"]
[BlackElo "2245"]
[Result "0-1"]
[Round "07"]
[TimeControl "180+2"]
[Date "2023.01.10"]
[WhiteClock "0:01:21"]
[BlackClock "0:00:33"]

1. d4 {[%clk 0:02:55]}  Nf6 {[%clk 0:02:54]} 2. c4 {[%clk 0:02:53]}  g6 {[%clk 0:02:54]} 3. Nc3 {[%clk 0:02:53]}  Bg7 {[%clk 0:02:55]} 4. e4 {[%clk 0:02:53]}  d6 {[%clk 0:02:54]} 5. f3 {[%clk 0:02:53]}  O-O {[%clk 0:02:54]} 6. Be3 {[%clk 0:02:54]}  a6 {[%clk 0:02:54]} 7. Qd2 {[%clk 0:02:52]}  b5 {[%clk 0:02:54]} 8. cxb5 {[%clk 0:02:51]}  axb5 {[%clk 0:02:55]} 9. Nxb5 {[%clk 0:02:51]}  c6 {[%clk 0:02:54]} 10. Nc3 {[%clk 0:02:50]}  Nbd7 {[%clk 0:02:55]} 11. Bd3 {[%clk 0:02:49]}  e5 {[%clk 0:02:55]} 12. Nge2 {[%clk 0:02:48]}  exd4 {[%clk 0:02:50]} 13. Nxd4 {[%clk 0:02:47]}  Ne5 {[%clk 0:02:49]} 14. Be2 {[%clk 0:02:46]}  d5 {[%clk 0:02:43]} 15. f4 {[%clk 0:02:44]}  Neg4 {[%clk 0:02:42]} 16. Nxc6 {[%clk 0:02:43]}  Qe8 {[%clk 0:02:23]} 17. Nxd5 {[%clk 0:02:39]}  Nxd5 {[%clk 0:02:16]} 18. Bxg4 {[%clk 0:02:32]}  Nxe3 {[%clk 0:02:14]} 19. Bxc8 {[%clk 0:02:31]}  Qxc6 {[%clk 0:01:54]} 20. Qxe3 {[%clk 0:02:23]}  Bxb2 {[%clk 0:01:44]} 21. Rb1 {[%clk 0:02:24]}  Bc3+ {[%clk 0:01:44]} 22. Kf1 {[%clk 0:02:21]}  Rfxc8 {[%clk 0:01:41]} 23. Qe2 {[%clk 0:02:19]}  Qc4 {[%clk 0:01:33]} 24. Qxc4 {[%clk 0:02:16]}  Rxc4 {[%clk 0:01:33]} 25. Rc1 {[%clk 0:02:14]}  Rxa2 {[%clk 0:01:30]} 26. g3 {[%clk 0:02:07]}  Ra1 {[%clk 0:01:12]} 27. Kg2 {[%clk 0:02:03]}  Rxc1 {[%clk 0:01:09]} 28. Rxc1 {[%clk 0:02:02]}  Rc5 {[%clk 0:01:10]} 29. Kf3 {[%clk 0:02:00]}  Bd4 {[%clk 0:01:09]} 30. Rd1 {[%clk 0:02:01]}  Rc3+ {[%clk 0:01:05]} 31. Kg4 {[%clk 0:02:01]}  Rc4 {[%clk 0:01:04]} 32. f5 {[%clk 0:01:58]}  Be5 {[%clk 0:01:01]} 33. fxg6 {[%clk 0:01:58]}  hxg6 {[%clk 0:01:00]} 34. Kf3 {[%clk 0:01:56]}  Rc2 {[%clk 0:01:00]} 35. Rd5 {[%clk 0:01:53]}  f6 {[%clk 0:00:52]} 36. g4 {[%clk 0:01:46]}  Rxh2 {[%clk 0:00:49]} 37. g5 {[%clk 0:01:47]}  Rh3+ {[%clk 0:00:47]} 38. Kf2 {[%clk 0:01:46]}  Kf7 {[%clk 0:00:46]} 39. gxf6 {[%clk 0:01:44]}  Kxf6 {[%clk 0:00:46]} 40. Rd8 {[%clk 0:01:44]}  Ra3 {[%clk 0:00:43]} 41. Rd5 {[%clk 0:01:40]}  g5 {[%clk 0:00:43]} 42. Rd8 {[%clk 0:01:36]}  g4 {[%clk 0:00:42]} 43. Rg8 {[%clk 0:01:36]}  g3+ {[%clk 0:00:42]} 44. Ke2 {[%clk 0:01:37]}  Ra2+ {[%clk 0:00:41]} 45. Kf3 {[%clk 0:01:37]}  Rf2+ {[%clk 0:00:39]} 46. Ke3 {[%clk 0:01:37]}  Bf4+ {[%clk 0:00:40]} 47. Kd4 {[%clk 0:01:35]}  g2 {[%clk 0:00:37]} 48. Rf8+ {[%clk 0:01:35]}  Kg7 {[%clk 0:00:36]} 49. Rf5 {[%clk 0:01:30]}  g1=Q {[%clk 0:00:35]} 50. Rb5 {[%clk 0:01:27]}  Rc2+ {[%clk 0:00:33]} 51. Kd5 {[%clk 0:01:27]}  Qd1+ {[%clk 0:00:33]} 52. Ke6 {[%clk 0:01:23]}  Qd6+ {[%clk 0:00:33]} 53. Kf5 {[%clk 0:01:22]}  Rc5+ {[%clk 0:00:33]} 54. e5 {[%clk 0:01:21]}  Qxe5+ {[%clk 0:00:33]} 55. Kg4 {[%clk 0:01:21]}  Qf5+ {[%clk 0:00:33]} 56. Kh4 {[%clk 0:01:21]}  Qh5# {[%clk 0:00:33]} 0-1


[Site "https://www.chess.com"]

[Event "Titled Tuesday Blitz January 10 Early 2023"]
[White "Ginzburg, Yakov"]
[Black "Bozorov, Makhsum"]
[WhiteFideId "4157176"]
[BlackFideId "14201330"]
[WhiteElo "2405"]
[BlackElo "2145"]
[Result "1-0"]
[Round "07"]
[TimeControl "180+2"]
[Date "2023.01.10"]
[WhiteClock "0:01:17"]
[BlackClock "0:00:44"]

1. e4 {[%clk 0:02:55]}  e5 {[%clk 0:02:59]} 2. Nf3 {[%clk 0:02:55]}  Nf6 {[%clk 0:02:59]} 3. Nxe5 {[%clk 0:02:53]}  d6 {[%clk 0:02:59]} 4. Nf3 {[%clk 0:02:52]}  Nxe4 {[%clk 0:02:59]} 5. Nc3 {[%clk 0:02:53]}  Nxc3 {[%clk 0:02:59]} 6. dxc3 {[%clk 0:02:53]}  Be7 {[%clk 0:03:00]} 7. Bf4 {[%clk 0:02:53]}  Nc6 {[%clk 0:02:59]} 8. Qd2 {[%clk 0:02:53]}  Be6 {[%clk 0:02:59]} 9. a3 {[%clk 0:02:51]}  Qd7 {[%clk 0:02:59]} 10. O-O-O {[%clk 0:02:51]}  a6 {[%clk 0:02:59]} 11. h4 {[%clk 0:02:41]}  O-O-O {[%clk 0:02:57]} 12. Nd4 {[%clk 0:02:41]}  Nxd4 {[%clk 0:02:48]} 13. cxd4 {[%clk 0:02:41]}  Bf5 {[%clk 0:02:36]} 14. f3 {[%clk 0:02:25]}  h5 {[%clk 0:02:35]} 15. d5 {[%clk 0:02:17]}  Bf6 {[%clk 0:02:21]} 16. Bd3 {[%clk 0:02:13]}  Rde8 {[%clk 0:02:15]} 17. Bg5 {[%clk 0:02:10]}  Bxd3 {[%clk 0:01:51]} 18. Qxd3 {[%clk 0:02:09]}  Bxg5+ {[%clk 0:01:50]} 19. hxg5 {[%clk 0:02:09]}  g6 {[%clk 0:01:50]} 20. Qd4 {[%clk 0:01:59]}  Kb8 {[%clk 0:01:41]} 21. Rhe1 {[%clk 0:01:59]}  Rxe1 {[%clk 0:01:31]} 22. Rxe1 {[%clk 0:01:56]}  Re8 {[%clk 0:01:32]} 23. Re4 {[%clk 0:01:52]}  Rxe4 {[%clk 0:01:29]} 24. Qxe4 {[%clk 0:01:52]}  b6 {[%clk 0:01:23]} 25. b3 {[%clk 0:01:51]}  a5 {[%clk 0:01:23]} 26. Kb2 {[%clk 0:01:51]}  Kc8 {[%clk 0:01:22]} 27. Kc3 {[%clk 0:01:32]}  Kd8 {[%clk 0:01:21]} 28. a4 {[%clk 0:01:21]}  Qe7 {[%clk 0:01:10]} 29. Qxe7+ {[%clk 0:01:21]}  Kxe7 {[%clk 0:01:11]} 30. Kc4 {[%clk 0:01:21]}  f6 {[%clk 0:00:57]} 31. f4 {[%clk 0:01:21]}  fxg5 {[%clk 0:00:56]} 32. fxg5 {[%clk 0:01:21]}  Kd8 {[%clk 0:00:48]} 33. Kb5 {[%clk 0:01:20]}  Kd7 {[%clk 0:00:46]} 34. g3 {[%clk 0:01:20]}  Kd8 {[%clk 0:00:46]} 35. Kc6 {[%clk 0:01:18]}  Kc8 {[%clk 0:00:46]} 36. c3 {[%clk 0:01:18]}  Kb8 {[%clk 0:00:45]} 37. b4 {[%clk 0:01:18]}  axb4 {[%clk 0:00:44]} 38. cxb4 {[%clk 0:01:18]}  Kc8 {[%clk 0:00:43]} 39. a5 {[%clk 0:01:17]}  bxa5 {[%clk 0:00:43]} 40. bxa5 {[%clk 0:01:17]}  Kb8 {[%clk 0:00:44]} 41. a6 {[%clk 0:01:17]} 1-0


[Site "https://www.chess.com"]

[Event "Titled Tuesday Blitz January 10 Early 2023"]
[White "Leve, Nitai"]
[Black "Pajeken, Jakob Leon"]
[WhiteFideId "2006898"]
[BlackFideId "12942839"]
[WhiteElo "2128"]
[BlackElo "2417"]
[Result "0-1"]
[Round "07"]
[TimeControl "180+2"]
[Date "2023.01.10"]
[WhiteClock "0:00:12"]
[BlackClock "0:00:33"]

1. e4 {[%clk 0:03:00]}  e5 {[%clk 0:02:52]} 2. Nf3 {[%clk 0:02:56]}  Nc6 {[%clk 0:02:52]} 3. d4 {[%clk 0:02:51]}  exd4 {[%clk 0:02:53]} 4. c3 {[%clk 0:02:51]}  d5 {[%clk 0:02:53]} 5. exd5 {[%clk 0:02:47]}  Qxd5 {[%clk 0:02:54]} 6. cxd4 {[%clk 0:02:42]}  Bg4 {[%clk 0:02:54]} 7. Be2 {[%clk 0:02:41]}  Bb4+ {[%clk 0:02:54]} 8. Nc3 {[%clk 0:02:41]}  Bxf3 {[%clk 0:02:53]} 9. Bxf3 {[%clk 0:02:42]}  Qc4 {[%clk 0:02:53]} 10. Bxc6+ {[%clk 0:02:42]}  bxc6 {[%clk 0:02:54]} 11. Qe2+ {[%clk 0:02:42]}  Qxe2+ {[%clk 0:02:55]} 12. Kxe2 {[%clk 0:02:43]}  O-O-O {[%clk 0:02:55]} 13. Be3 {[%clk 0:02:44]}  Ne7 {[%clk 0:02:54]} 14. Rac1 {[%clk 0:02:43]}  Rhe8 {[%clk 0:02:53]} 15. Rhd1 {[%clk 0:02:40]}  f5 {[%clk 0:02:50]} 16. Kf1 {[%clk 0:02:38]}  h6 {[%clk 0:02:48]} 17. a3 {[%clk 0:02:25]}  Bxc3 {[%clk 0:02:46]} 18. Rxc3 {[%clk 0:02:26]}  Rd5 {[%clk 0:02:41]} 19. Rdc1 {[%clk 0:02:22]}  Kd7 {[%clk 0:02:41]} 20. b4 {[%clk 0:02:19]}  a6 {[%clk 0:02:35]} 21. a4 {[%clk 0:02:18]}  g5 {[%clk 0:02:33]} 22. g3 {[%clk 0:02:15]}  f4 {[%clk 0:02:26]} 23. gxf4 {[%clk 0:02:13]}  gxf4 {[%clk 0:02:27]} 24. Bxf4 {[%clk 0:02:13]}  Rxd4 {[%clk 0:02:27]} 25. Rc4 {[%clk 0:02:14]}  Rxc4 {[%clk 0:02:24]} 26. Rxc4 {[%clk 0:02:14]}  Nd5 {[%clk 0:02:24]} 27. Bxh6 {[%clk 0:02:12]}  Rh8 {[%clk 0:02:21]} 28. Bd2 {[%clk 0:01:56]}  Rxh2 {[%clk 0:02:20]} 29. Ke2 {[%clk 0:01:57]}  Rh1 {[%clk 0:02:16]} 30. f4 {[%clk 0:01:51]}  Ra1 {[%clk 0:02:15]} 31. a5 {[%clk 0:01:51]}  Rh1 {[%clk 0:02:05]} 32. Kd3 {[%clk 0:01:44]}  Kd6 {[%clk 0:01:54]} 33. Re4 {[%clk 0:01:31]}  Rh3+ {[%clk 0:01:52]} 34. Kc4 {[%clk 0:01:21]}  Rf3 {[%clk 0:01:46]} 35. Re8 {[%clk 0:01:17]}  Kd7 {[%clk 0:01:41]} 36. Ra8 {[%clk 0:01:10]}  Rf2 {[%clk 0:01:19]} 37. Kd3 {[%clk 0:00:51]}  Nxf4+ {[%clk 0:01:13]} 38. Ke3 {[%clk 0:00:28]}  Nh3 {[%clk 0:01:08]} 39. Rxa6 {[%clk 0:00:27]}  Rf8 {[%clk 0:01:02]} 40. Ra7 {[%clk 0:00:23]}  Nf4 {[%clk 0:01:00]} 41. Ke4 {[%clk 0:00:19]}  Nd5 {[%clk 0:01:00]} 42. Kd4 {[%clk 0:00:14]}  Rb8 {[%clk 0:00:54]} 43. Kc4 {[%clk 0:00:13]}  Kc8 {[%clk 0:00:44]} 44. Be1 {[%clk 0:00:13]}  Rb5 {[%clk 0:00:35]} 45. a6 {[%clk 0:00:12]}  Kd7 {[%clk 0:00:33]} 46. Ra8 {[%clk 0:00:12]}  Nb6+ {[%clk 0:00:33]} 0-1


[Site "https://www.chess.com"]